bitfinex/quotes_SOLUSD_20250721
["timestamp","ask_amount","ask_price","bid_price","bid_amount"]
[1753088694212,0.06,190.6,190.59,113.94468397]
[1753088694633,5.97740001,190.6,190.59,113.94468397]
[1753088694814,0.06,190.6,190.59,113.94468397]
[1753088695004,5.97740001,190.6,190.59,113.94468397]
[1753088695412,6.67740001,190.6,190.59,113.94468397]
[1753088699112,17.84138973,190.6,190.53,16.78468397]
[1753088699339,5.91740001,190.54,190.53,76.22468397]
[1753088699536,5.91740001,190.54,190.53,54.48468397]
[1753088699836,6.61740001,190.54,190.51,16.78468397]
[1753088700034,5.91740001,190.52,190.51,16.78468397]
[1753088700218,5.91740001,190.52,190.51,54.48468397]
[1753088701743,5.91740001,190.52,190.51,113.92468397]
[1753088704016,5.91740001,190.53,190.51,59.73375226]
[1753088704221,5.91740001,190.54,190.53,16.78468397]
[1753088704444,0.7,190.58,190.53,54.48468397]
[1753088704620,0.7,190.58,190.53,55.14468397]
[1753088704819,5.97740001,190.6,190.55,16.78468397]
[1753088705033,0.06,190.6,190.57,22.70208398]
[1753088705234,0.06,190.6,190.59,16.78468397]
[1753088705452,0.06,190.6,190.59,22.03154896]
[1753088705739,0.06,190.6,190.59,16.78468397]
[1753088705941,0.06,190.6,190.59,54.48468397]
[1753088706241,6.67740001,190.6,190.59,54.48468397]
[1753088706426,6.67740001,190.6,190.56,16.78468397]
[1753088706626,5.91740001,190.57,190.56,16.78468397]
[1753088706821,5.91740001,190.57,190.56,54.48468397]
[1753088710639,6.61740001,190.57,190.56,76.22468397]
[1753088710841,11.86481565,190.57,190.56,76.22468397]
[1753088711030,11.86481565,190.57,190.56,59.44]
[1753088713047,0.7,190.57,190.56,76.22468397]
[1753088713244,6.61740001,190.57,190.56,76.22468397]
[1753088714954,6.61740001,190.57,190.56,16.78468397]
[1753088717949,5.91740001,190.57,190.56,16.78468397]
[1753088718431,0.72,190.59,190.56,16.78468397]
[1753088718631,5.91740001,190.57,190.56,16.78468397]
[1753088718844,5.91740001,190.57,190.56,54.46468397]
[1753088719433,6.63740001,190.57,190.56,54.46468397]
[1753088719864,6.63740001,190.57,190.56,16.78468397]
[1753088720744,6.63740001,190.57,190.56,76.28468397]
[1753088720945,5.91740001,190.57,190.56,76.28468397]
[1753088724074,5.91740001,190.57,190.56,76.97468397]
[1753088724375,5.91740001,190.57,190.56,82.22237498]
[1753088724542,5.91740001,190.57,190.56,81.53237498]
[1753088726244,0.06,190.6,190.56,81.53237498]
[1753088726551,5.91740001,190.59,190.57,54.44468397]
[1753088726751,0.06,190.6,190.57,54.44468397]
[1753088727047,5.91740001,190.58,190.57,54.44468397]
[1753088727646,0.06,190.6,190.57,54.44468397]
[1753088728058,5.91740001,190.58,190.57,54.44468397]
[1753088728261,6.63740001,190.58,190.57,54.44468397]
[1753088728666,0.72,190.58,190.57,54.44468397]
[1753088728970,5.91740001,190.58,190.57,54.44468397]
[1753088730099,0.06,190.6,190.57,54.44468397]
[1753088730402,5.91740001,190.58,190.57,54.44468397]
[1753088731067,5.91740001,190.58,190.57,55.13468397]
[1753088731394,5.91740001,190.58,190.57,60.38209961]
[1753088731568,5.91740001,190.58,190.57,59.69209961]
[1753088731966,5.91740001,190.58,190.57,54.44468397]
[1753088732497,5.91740001,190.58,190.57,113.94468397]
[1753088735082,6.63740001,190.58,190.57,113.92468397]
[1753088736592,5.91740001,190.58,190.57,113.92468397]
[1753088747206,0.06,190.6,190.57,113.92468397]
[1753088747508,5.91740001,190.58,190.57,113.92468397]
[1753088748184,0.06,190.6,190.57,113.92468397]
[1753088748384,5.91740001,190.58,190.57,113.92468397]
[1753088749488,5.97740001,190.6,190.57,119.17207983]
[1753088750294,0.06,190.6,190.57,119.17207983]
[1753088750490,5.97740001,190.6,190.57,119.17207983]
[1753088751891,0.06,190.6,190.57,125.08947984]
[1753088752094,0.06,190.6,190.57,126.67387984]
[1753088752313,0.06,190.64,190.61,59.38]
[1753088752503,5.91740001,190.63,190.62,54.38468397]
[1753088752704,0.06,190.64,190.62,54.38468397]
[1753088753009,5.91740001,190.63,190.62,54.38468397]
[1753088756099,5.91740001,190.63,190.62,113.66468397]
[1753088756807,5.97740001,190.64,190.62,113.66468397]
[1753088757202,5.91740001,190.63,190.62,113.66468397]
[1753088757616,5.91740001,190.63,190.62,76.06468397]
[1753088757823,5.91740001,190.63,190.62,113.66468397]
[1753088760207,5.97740001,190.64,190.62,113.66468397]
[1753088760409,0.06,190.67,190.65,16.78468397]
[1753088760717,2.73804717,190.72,190.65,16.78468397]
[1753088760718,31.18831828,190.76,190.67,42.78468397]
[1753088760907,0.06,190.76,190.72,8.0312]
[1753088761105,0.06,190.76,190.72,216.31328398]
[1753088761323,5.97740001,190.76,190.72,180.44000987]
[1753088761532,6.01740001,190.73,190.72,54.36468397]
[1753088761712,6.01740001,190.73,190.72,16.78468397]
[1753088761912,11.26041369,190.73,190.72,16.78468397]
[1753088763616,26.0,190.7,190.65,37.56]
[1753088763822,5.24521374,190.65,190.63,37.56]
[1753088764139,5.91740001,190.64,190.63,54.34468397]
[1753088765419,5.91740001,190.64,190.56,5.27762185]
[1753088765420,5.91740001,190.64,190.61,16.78468397]
[1753088765737,5.91740001,190.62,190.61,16.78468397]
[1753088766028,11.16343925,190.62,190.61,16.78468397]
[1753088766404,5.91740001,190.62,190.61,16.78468397]
[1753088768625,26.0,190.67,190.61,16.78468397]
[1753088768824,26.0,190.67,190.63,16.78468397]
[1753088769022,5.91740001,190.64,190.63,16.78468397]
[1753088769330,5.91740001,190.64,190.63,54.34468397]
[1753088772738,5.91740001,190.67,190.64,16.78468397]
[1753088773039,5.91740001,190.67,190.65,37.54]
[1753088773243,5.91740001,190.66,190.65,54.32468397]
[1753088773614,5.91740001,190.69,190.66,16.78468397]
[1753088773814,5.91740001,190.69,190.68,16.78468397]
[1753088777126,5.91740001,190.69,190.68,22.02907247]
[1753088777449,5.91740001,190.7,190.68,22.02907247]
[1753088777743,0.1,190.73,190.69,54.32468397]
[1753088777923,6.01740001,190.73,190.7,16.78468397]
[1753088778125,6.01740001,190.73,190.71,37.54]
[1753088778319,0.1,190.73,190.72,16.78468397]
[1753088778514,6.01740001,190.73,190.72,54.32468397]
[1753088779827,0.1,190.73,190.72,59.56797256]
[1753088780346,6.01740001,190.73,190.72,54.32468397]
[1753088781425,0.1,190.73,190.72,54.32468397]
[1753088781623,6.01740001,190.73,190.72,54.32468397]
[1753088782949,0.1,190.73,190.72,54.32468397]
[1753088783250,6.01740001,190.73,190.72,54.32468397]
[1753088786946,0.1,190.73,190.72,54.32468397]
[1753088787137,6.01740001,190.73,190.72,54.32468397]
[1753088787333,6.01740001,190.73,190.69,22.02879745]
[1753088787650,18.45058151,190.73,190.62,5.24599888]
[1753088787945,5.3430473,190.73,190.62,64.64599888]
[1753088788151,5.3430473,190.73,190.63,37.5]
[1753088788339,5.3430473,190.73,190.64,16.78468397]
[1753088788527,5.3430473,190.73,190.66,16.78468397]
[1753088788728,5.91740001,190.68,190.67,54.28468397]
[1753088789537,5.91740001,190.69,190.67,54.28468397]
[1753088789735,5.91740001,190.68,190.67,54.28468397]
[1753088791355,5.91740001,190.7,190.68,16.78468397]
[1753088791557,5.91740001,190.7,190.69,54.28468397]
[1753088791760,5.91740001,190.71,190.7,16.78468397]
[1753088792059,5.91740001,190.72,190.7,16.78468397]
[1753088792247,5.91740001,190.72,190.71,54.28468397]
[1753088792775,0.1,190.73,190.72,16.78468397]
[1753088792933,6.01740001,190.73,190.72,16.78468397]
[1753088796547,0.1,190.73,190.72,81.42797256]
[1753088799640,0.1,190.73,190.72,87.34537257]
[1753088799939,0.06,190.76,190.72,100.45359404]
[1753088800141,0.06,190.76,190.74,16.78468397]
[1753088800340,5.97740001,190.76,190.75,54.26468397]
[1753088800761,0.06,190.76,190.75,54.26468397]
[1753088800969,0.06,190.76,190.75,118.90714792]
[1753088801152,5.97740001,190.76,190.75,118.90714792]
[1753088802844,5.97740001,190.76,190.75,113.66468397]
[1753088803346,0.06,190.76,190.75,113.64468397]
[1753088803551,5.97740001,190.76,190.75,113.64468397]
[1753088803960,5.97740001,190.76,190.75,118.88714792]
[1753088805647,0.06,190.76,190.75,118.88714792]
[1753088806048,5.97740001,190.76,190.75,113.64468397]
[1753088807659,5.97740001,190.76,190.75,118.88714792]
[1753088808268,0.06,190.76,190.75,118.88714792]
[1753088810375,0.1,190.78,190.77,76.06468397]
[1753088810558,0.1,190.78,190.77,119.42208398]
[1753088810756,1e-08,190.78,190.77,261.50468397]
[1753088810969,1e-08,190.78,190.77,267.42208398]
[1753088811170,1e-08,190.78,190.77,275.23648976]
[1753088811973,1e-08,190.78,190.77,269.31908975]
[1753088812179,1e-08,190.78,190.77,279.39523646]
[1753088812892,0.06,190.8,190.79,42.78468397]
[1753088813074,0.06,190.8,190.79,80.22468397]
[1753088813388,0.06,190.8,190.79,86.14208398]
[1753088813767,0.06,190.84,190.83,75.74468397]
[1753088813985,0.06,190.84,190.83,112.98468397]
[1753088814667,0.06,190.84,190.83,118.22495017]
[1753088818191,0.06,190.84,190.83,124.14235018]
[1753088818502,0.06,190.84,190.83,118.22495017]
[1753088821165,5.23859307,190.9,190.84,58.7]
[1753088821372,11.15599308,190.9,190.85,16.78468397]
[1753088821567,5.23971705,190.85,190.77,58.7]
[1753088821771,5.91740001,190.78,190.77,58.7]
[1753088822000,5.91740001,190.78,190.77,96.12]
[1753088822200,5.91740001,190.78,190.77,37.42]
[1753088822372,5.91740001,190.78,190.77,54.20468397]
[1753088822874,1.5926,190.84,190.78,16.78468397]
[1753088823073,1.5926,190.84,190.8,16.78468397]
[1753088823690,5.2402662,190.83,190.8,16.78468397]
[1753088824210,5.91740001,190.81,190.8,16.78468397]
[1753088824583,5.2402662,190.83,190.8,16.78468397]
[1753088824895,5.91740001,190.81,190.79,16.78468397]
[1753088825077,11.83480002,190.8,190.79,16.78468397]
[1753088825393,11.83480002,190.8,190.78,16.78468397]
[1753088825584,5.91740001,190.79,190.78,16.78468397]
[1753088827684,11.15876486,190.79,190.78,16.78468397]
[1753088828408,5.91740001,190.79,190.78,16.78468397]
[1753088828775,11.15876486,190.79,190.78,16.78468397]
[1753088828974,5.91740001,190.79,190.78,16.78468397]
[1753088830194,5.91740001,190.79,190.78,75.48468397]
[1753088832002,5.24061403,190.82,190.78,75.48468397]
[1753088832182,5.91740001,190.79,190.78,75.48468397]
[1753088832387,5.24061403,190.82,190.78,112.88468397]
[1753088832698,5.91740001,190.79,190.78,112.88468397]
[1753088835984,5.24059384,190.82,190.78,112.88468397]
[1753088836184,5.91740001,190.79,190.78,112.88468397]
[1753088838312,26.0,190.83,190.78,118.12624684]
[1753088838494,5.91740001,190.79,190.78,112.88468397]
[1753088838679,5.91740001,190.79,190.78,112.91468397]
[1753088841592,11.15876486,190.79,190.78,0.03]
[1753088847197,26.0,190.8,190.78,16.81468397]
[1753088847407,0.06,190.84,190.8,16.78468397]
[1753088847707,5.91740001,190.81,190.8,16.78468397]
[1753088848607,31.30001239,190.84,190.8,16.78468397]
[1753088848819,26.0,190.82,190.81,37.38]
[1753088849735,5.24035092,190.83,190.81,37.38]
[1753088849902,5.91740001,190.82,190.81,37.38]
[1753088852933,0.06,190.84,190.81,37.38]
[1753088853133,5.91740001,190.82,190.81,113.26468397]
[1753088853806,0.06,190.84,190.82,16.78468397]
[1753088854009,5.91740001,190.83,190.82,16.78468397]
[1753088854541,0.06,190.84,190.82,75.88468397]
[1753088854831,0.06,190.84,190.83,54.16468397]
[1753088855027,0.06,190.84,190.83,113.26468397]
[1753088855720,0.06,190.84,190.83,118.50495017]
[1753088857027,0.06,190.84,190.83,124.42235018]
[1753088857216,0.06,190.88,190.85,16.78468397]
[1753088857411,0.06,190.88,190.87,16.78468397]
[1753088858313,0.06,190.88,190.87,22.02385199]
[1753088858535,0.06,190.88,190.87,16.78468397]
[1753088859233,0.06,190.88,190.87,22.02385199]
[1753088859428,0.06,190.88,190.87,16.78468397]
[1753088860537,0.06,190.88,190.87,22.02385199]
[1753088861336,0.06,190.88,190.87,86.981252]
[1753088862130,0.06,190.88,190.87,81.06385199]
[1753088862820,0.06,190.88,190.87,86.981252]
[1753088863135,0.06,190.88,190.87,81.06385199]
[1753088863639,0.06,190.88,190.87,86.981252]
[1753088865730,0.06,190.92,190.89,16.78468397]
[1753088865925,0.06,190.92,190.91,16.78468397]
[1753088866324,0.06,190.92,190.91,22.70208398]
[1753088866531,0.06,190.92,190.91,16.78468397]
[1753088866836,0.06,190.92,190.91,22.02275426]
[1753088867343,0.06,190.92,190.91,27.94015427]
[1753088868647,0.06,190.92,190.91,30.50826061]
[1753088870219,0.06,190.92,190.91,24.5908606]
[1753088870420,0.06,190.92,190.91,172.5908606]
[1753088870729,0.06,190.92,190.91,178.50826061]
[1753088872440,0.06,190.92,190.91,172.5908606]
[1753088873250,0.06,190.92,190.91,164.78468397]
[1753088873449,0.06,190.92,190.91,207.34275426]
[1753088873750,0.06,190.92,190.91,213.26015427]
[1753088873953,0.06,190.92,190.91,207.34275426]
[1753088874247,0.06,190.92,190.91,213.26015427]
[1753088874546,0.06,190.96,190.93,58.72]
[1753088874847,0.06,190.96,190.94,54.08468397]
[1753088875453,0.06,190.96,190.94,117.94189486]
[1753088876330,0.06,190.96,190.94,112.70468397]
[1753088876533,5.97740001,190.96,190.94,112.70468397]
[1753088876940,0.06,190.96,190.94,112.70468397]
[1753088877853,5.91740001,190.95,190.94,112.70468397]
[1753088878660,0.06,190.96,190.94,112.70468397]
[1753088878948,5.91740001,190.95,190.94,112.70468397]
[1753088879951,11.15437303,190.95,190.94,112.70468397]
[1753088880348,11.15437303,190.95,190.9,16.78468397]
[1753088880554,6.88187302,190.95,190.91,37.3]
[1753088880751,5.91740001,190.92,190.91,37.3]
[1753088882054,5.91740001,190.92,190.91,54.08468397]
[1753088882447,31.29692055,190.96,190.92,16.78468397]
[1753088882637,5.97740001,190.96,190.94,16.78468397]
[1753088882837,0.06,190.96,190.95,54.08468397]
[1753088883153,5.97740001,190.96,190.95,54.08468397]
[1753088884651,5.97740001,190.96,190.95,112.98468397]
[1753088885251,0.06,190.96,190.95,112.98468397]
[1753088885449,5.97740001,190.96,190.95,54.08468397]
[1753088885647,5.29669878,190.96,190.87,0.03]
[1753088885850,24.30584575,190.96,190.89,16.78468397]
[1753088886036,24.30584575,190.96,190.9,37.3]
[1753088886944,5.91740001,190.91,190.9,54.08468397]
[1753088892264,5.91740001,190.91,190.9,112.98468397]
[1753088894761,5.23731856,190.94,190.91,16.78468397]
[1753088895067,5.91740001,190.92,190.91,16.78468397]
[1753088895255,5.91740001,190.92,190.91,54.06468397]
[1753088896067,5.91740001,190.92,190.91,16.78468397]
[1753088896256,5.91740001,190.92,190.91,54.06468397]
[1753088896656,0.06,190.96,190.91,112.96468397]
[1753088896657,5.91740001,190.93,190.91,112.96468397]
[1753088896960,5.91740001,190.94,190.91,118.20275426]
[1753088897170,5.91740001,190.93,190.91,112.96468397]
[1753088897354,5.91740001,190.92,190.91,112.96468397]
[1753088898263,5.29671332,190.96,190.91,112.96468397]
[1753088898479,5.91740001,190.94,190.91,118.20272961]
[1753088899147,5.91740001,190.93,190.91,118.20272961]
[1753088899465,5.91740001,190.94,190.91,118.20272961]
[1753088900264,5.91740001,190.93,190.91,118.20272961]
[1753088902068,5.91740001,190.94,190.91,118.20272961]
[1753088902444,5.91740001,190.94,190.91,117.20272961]
[1753088903055,5.91740001,190.93,190.91,117.20272961]
[1753088905254,5.91740001,190.94,190.91,117.20272961]
[1753088906150,5.91740001,190.93,190.91,117.20272961]
[1753088906770,5.91740001,190.92,190.91,111.96468397]
[1753088906973,5.91740001,190.92,190.91,111.99468397]
[1753088907751,5.91740001,190.92,190.91,0.03]
[1753088907972,5.91740001,190.92,190.91,16.81468397]
[1753088908275,5.91740001,190.92,190.91,0.03]
[1753088909054,11.15519594,190.92,190.91,0.03]
[1753088909971,5.91740001,190.92,190.91,0.03]
[1753088913858,5.91740001,190.92,190.91,37.29]
[1753088914568,11.15519594,190.92,190.91,37.29]
[1753088915061,11.15519594,190.92,190.91,0.03]
[1753088915668,5.91740001,190.92,190.91,0.03]
[1753088917080,11.15519594,190.92,190.91,0.03]
[1753088918969,5.23759187,190.93,190.91,0.03]
[1753088919174,5.91740001,190.92,190.91,0.03]
[1753088919372,26.0,190.93,190.91,0.03]
[1753088919576,5.91740001,190.92,190.91,0.03]
[1753088919778,5.91740001,190.92,190.91,16.81468397]
[1753088922384,26.0,190.93,190.91,16.81468397]
[1753088922571,5.91740001,190.92,190.91,16.81468397]
[1753088924872,5.91740001,190.92,190.91,75.71468397]
[1753088926575,26.0,190.93,190.91,75.71468397]
[1753088926775,5.91740001,190.92,190.91,75.71468397]
[1753088927662,5.29701013,190.95,190.91,75.71468397]
[1753088927885,0.06,190.95,190.92,54.02468397]
[1753088928492,5.91740001,190.94,190.92,54.02468397]
[1753088928689,5.91740001,190.93,190.92,37.24]
[1753088928875,5.91740001,190.93,190.92,54.02468397]
[1753088930488,5.91740001,190.93,190.92,16.78468397]
[1753088931392,0.06,190.94,190.92,16.78468397]
[1753088931588,0.06,190.94,190.93,54.00468397]
[1753088932989,5.97740001,190.94,190.93,54.00468397]
[1753088933699,5.97740001,190.94,190.93,112.90468397]
[1753088934401,0.06,190.94,190.93,112.90468397]
[1753088934585,5.97740001,190.94,190.93,112.90468397]
[1753088935383,5.97740001,190.94,190.93,58.9]
[1753088935595,11.21464731,190.94,190.93,58.9]
[1753088936801,5.97740001,190.94,190.93,58.9]
[1753088937503,5.97740001,190.94,190.93,96.12]
[1753088939208,11.21464731,190.94,190.93,96.12]
[1753088939399,11.21464731,190.94,190.93,58.9]
[1753088939602,11.21464731,190.94,190.92,37.22]
[1753088939799,5.91740001,190.93,190.92,54.00468397]
[1753088940009,5.91740001,190.93,190.92,16.78468397]
[1753088941996,5.91740001,190.93,190.91,58.93]
[1753088941997,11.15492161,190.93,190.91,58.93]
[1753088942204,5.91740001,190.92,190.91,58.93]
[1753088942524,11.83480002,190.92,190.91,0.03]
[1753088942815,26.0,190.9,190.89,58.9]
[1753088943009,37.83480002,190.9,190.89,58.9]
[1753088944512,43.0731447,190.9,190.89,58.9]
[1753088945215,37.83480002,190.9,190.89,58.9]
[1753088945402,31.91740001,190.9,190.89,58.9]
[1753088945596,37.15581369,190.9,190.87,58.93]
[1753088945799,5.91740001,190.88,190.87,75.71468397]
[1753088946184,5.23806055,190.92,190.87,75.71468397]
[1753088946389,5.91740001,190.9,190.88,16.78468397]
[1753088946584,5.91740001,190.91,190.9,16.78468397]
[1753088946790,5.91740001,190.91,190.9,53.98468397]
[1753088949798,5.91740001,190.91,190.9,37.2]
[1753088950002,5.91740001,190.91,190.89,37.2]
[1753088950307,5.91740001,190.9,190.89,53.98468397]
[1753088950506,5.91740001,190.9,190.89,16.78468397]
[1753088950916,5.91740001,190.9,190.87,58.93]
[1753088951137,5.91740001,190.88,190.87,112.91468397]
[1753088951713,5.91740001,190.88,190.87,75.71468397]
[1753088953997,11.15629355,190.88,190.87,0.03]
[1753088955404,32.3801,190.92,190.87,0.03]
[1753088955608,5.91740001,190.88,190.87,0.03]
[1753088957424,31.91740001,190.88,190.87,0.03]
[1753088957927,5.91740001,190.89,190.87,37.23]
[1753088958229,0.06,190.93,190.88,16.78468397]
[1753088958230,5.91740001,190.91,190.88,16.78468397]
[1753088958404,5.91740001,190.9,190.89,53.96468397]
[1753088959111,5.91740001,190.91,190.9,16.78468397]
[1753088959527,5.91740001,190.92,190.9,75.68468397]
[1753088959719,0.06,190.93,190.92,16.78468397]
[1753088959917,0.06,190.93,190.92,75.68468397]
[1753088962442,5.97740001,190.93,190.92,112.86468397]
[1753088966342,11.21492161,190.93,190.92,58.9]
[1753088966641,5.97740001,190.93,190.92,58.9]
[1753088968518,11.21492161,190.93,190.92,58.9]
[1753088968721,0.06,190.93,190.92,75.68468397]
[1753088968926,5.97740001,190.93,190.92,75.68468397]
[1753088969122,5.97740001,190.93,190.92,112.84468397]
[1753088969443,0.06,190.93,190.92,112.84468397]
[1753088969619,0.06,190.93,190.92,118.0824799]
[1753088969820,0.06,190.93,190.92,112.84468397]
[1753088970020,5.97740001,190.93,190.92,112.84468397]
[1753088971546,0.06,190.93,190.92,118.0824799]
[1753088971743,0.06,190.93,190.92,112.84468397]
[1753088971945,5.97740001,190.93,190.92,112.84468397]
[1753088974126,5.97740001,190.93,190.92,75.68468397]
[1753088984728,0.06,190.93,190.92,75.68468397]
[1753088985137,5.97740001,190.93,190.92,75.68468397]
[1753088988447,0.06,190.93,190.92,75.68468397]
[1753088988677,5.97740001,190.93,190.92,75.68468397]
[1753088994654,5.97740001,190.93,190.92,112.80468397]
[1753088996965,0.06,190.93,190.92,112.80468397]
[1753088997154,5.97740001,190.93,190.92,112.80468397]
[1753089001973,26.0,190.9,190.87,0.03]
[1753089002168,26.0,190.85,190.83,0.03]
[1753089002374,5.91740001,190.84,190.81,0.03]
[1753089002548,5.91740001,190.83,190.81,0.03]
[1753089002746,11.83480002,190.83,190.79,0.03]
[1753089003057,11.83480002,190.8,190.79,0.03]
[1753089003852,17.07589016,190.8,190.79,0.03]
[1753089004175,11.83480002,190.8,190.79,0.03]
[1753089004551,5.91740001,190.8,190.79,0.03]
[1753089005149,5.91740001,190.8,190.79,16.81468397]
[1753089005385,26.0,190.84,190.79,16.81468397]
[1753089005683,5.91740001,190.8,190.79,0.03]
[1753089005858,5.91740001,190.8,190.79,53.93468397]
[1753089006047,5.91740001,190.8,190.79,59.17604882]
[1753089006375,5.91740001,190.8,190.79,53.93468397]
[1753089007159,5.91740001,190.8,190.79,59.17604882]
[1753089007355,26.0,190.84,190.8,16.78468397]
[1753089007571,5.91740001,190.82,190.81,37.12]
[1753089008093,5.91740001,190.82,190.81,42.36081547]
[1753089008859,26.0,190.85,190.82,16.78468397]
[1753089009062,5.91740001,190.83,190.82,16.78468397]
[1753089010666,5.91740001,190.83,190.82,75.68468397]
[1753089011676,26.0,190.86,190.82,80.92521418]
[1753089011878,26.0,190.85,190.83,37.12]
[1753089012073,5.91740001,190.84,190.83,112.80468397]
[1753089013167,5.91740001,190.84,190.83,58.9]
[1753089013395,5.2397692,190.85,190.83,58.9]
[1753089013567,5.91740001,190.84,190.83,58.9]
[1753089013968,11.15739162,190.84,190.83,58.9]
[1753089014175,11.15739162,190.84,190.8,37.1]
[1753089014381,11.15739162,190.84,190.8,53.88468397]
[1753089014382,5.91740001,190.81,190.8,53.88468397]
[1753089015089,5.91740001,190.82,190.81,16.78468397]
[1753089015471,26.0,190.85,190.81,16.78468397]
[1753089015674,5.91740001,190.84,190.83,16.78468397]
[1753089016302,5.91740001,190.84,190.82,37.1]
[1753089016500,5.91740001,190.83,190.81,96.0]
[1753089016673,5.24001818,190.84,190.81,112.78468397]
[1753089016674,5.91740001,190.82,190.81,112.78468397]
[1753089019673,5.24006589,190.84,190.81,112.78468397]
[1753089019879,5.91740001,190.82,190.81,112.78468397]
[1753089021395,11.15794083,190.82,190.81,58.9]
[1753089021599,17.07534084,190.82,190.8,58.93]
[1753089021800,11.83480002,190.81,190.8,58.93]
[1753089021989,11.83480002,190.81,190.8,0.03]
[1753089022297,17.07561549,190.81,190.8,0.03]
[1753089023582,26.0,190.79,190.78,0.03]
[1753089023788,31.91740001,190.79,190.78,0.03]
[1753089024299,26.0,190.75,190.74,58.93]
[1753089024482,31.91740001,190.75,190.74,0.03]
[1753089025480,37.15986396,190.75,190.74,0.03]
[1753089032411,31.24246395,190.75,190.74,0.03]
[1753089032581,37.15986396,190.75,190.74,0.03]
[1753089032786,31.91740001,190.75,190.74,0.03]
[1753089033748,37.15986396,190.75,190.74,0.03]
[1753089034983,31.91740001,190.75,190.74,0.03]
[1753089037894,37.1,190.78,190.74,16.81468397]
[1753089038097,5.91740001,190.77,190.75,37.1]
[1753089038619,31.24154483,190.79,190.75,53.88468397]
[1753089038620,5.91740001,190.76,190.75,53.88468397]
[1753089040820,11.15958914,190.76,190.75,37.1]
[1753089041007,11.15958914,190.76,190.74,96.03]
[1753089041202,5.91740001,190.75,190.74,96.03]
[1753089041415,5.91740001,190.75,190.74,58.93]
[1753089042117,5.91740001,190.75,190.74,0.03]
[1753089042495,5.91740001,190.75,190.73,0.03]
[1753089042808,31.91740001,190.74,190.73,0.03]
[1753089043528,31.91740001,190.74,190.72,0.03]
[1753089044325,5.91740001,190.73,190.72,0.03]
[1753089044698,11.16041369,190.73,190.72,0.03]
[1753089045000,17.0778137,190.73,190.71,0.2]
[1753089045224,11.83480002,190.72,190.71,0.2]
[1753089046132,5.91740001,190.72,190.71,0.2]
[1753089047235,11.1606886,190.72,190.71,0.2]
[1753089049027,48.2406886,190.72,190.71,0.2]
[1753089049235,54.15808861,190.72,190.71,0.2]
[1753089049411,54.15808861,190.72,190.7,0.03]
[1753089049734,11.83480002,190.71,190.7,0.03]
[1753089049907,37.83480002,190.71,190.7,0.03]
[1753089050430,43.07836354,190.71,190.7,0.03]
[1753089051922,31.24356352,190.71,190.7,0.03]
[1753089052121,43.07836354,190.71,190.7,0.03]
[1753089054822,5.91740001,190.71,190.7,0.03]
[1753089057440,5.91740001,190.71,190.7,16.81468397]
[1753089058715,26.0,190.74,190.7,75.71468397]
[1753089058913,5.91740001,190.72,190.71,53.86468397]
[1753089059924,5.91740001,190.73,190.72,16.78468397]
[1753089060127,5.91740001,190.73,190.72,75.68468397]
[1753089060326,5.91740001,190.74,190.72,75.68468397]
[1753089061644,0.06,190.73,190.72,75.68468397]
[1753089061839,5.97740001,190.73,190.72,75.68468397]
[1753089063443,11.22041369,190.73,190.72,58.9]
[1753089063655,11.22041369,190.73,190.71,0.03]
[1753089063855,74.89480002,190.72,190.7,0.03]
[1753089064044,11.83480002,190.71,190.7,0.03]
[1753089065340,17.07836354,190.71,190.7,0.03]
[1753089066238,17.07836354,190.71,190.69,0.2]
[1753089066549,11.83480002,190.7,190.69,0.2]
[1753089066725,11.83480002,190.7,190.67,0.2]
[1753089067056,5.91740001,190.68,190.67,0.2]
[1753089067465,24.27275977,190.68,190.63,0.03]
[1753089067666,5.91740001,190.64,190.63,0.03]
[1753089069466,5.24466355,190.67,190.63,0.03]
[1753089069639,5.91740001,190.64,190.63,0.03]
[1753089071445,26.0,190.69,190.63,0.03]
[1753089071656,5.91740001,190.65,190.63,0.03]
[1753089072353,5.24419054,190.69,190.63,0.03]
[1753089072553,5.91740001,190.65,190.63,0.03]
[1753089073257,5.91740001,190.64,190.63,0.03]
[1753089074074,5.91740001,190.65,190.63,0.03]
[1753089074248,5.91740001,190.66,190.65,16.78468397]
[1753089074450,5.91740001,190.66,190.65,75.68468397]